[Event "Reykjavik Open 2025"]
[Site "Reykjavik"]
[Date "2025.04.10"]
[Round "3.43"]
[White "Shafer, Logan C"]
[Black "Larkin, Vladyslav"]
[Result "1/2-1/2"]
[Annotator "RC"]
[ECO "B07"]
[WhiteElo "2193"]
[BlackElo "2449"]
[PlyCount "113"]
[EventDate "2025.04.09"]
[EventType "swiss"]
[EventCountry "ISL"]
[SourceTitle "playchess.com"]
[Source "ChessBase"]
[SourceQuality "1"]
[TimeControl "40/5400+30:1800+30"]

1. e4 {[%emt 0:00:02]} d6 {[%emt 0:02:57]} 2. d4 {[%emt 0:00:08]} Nf6 {[%emt 0:00:04]} 3. Nc3 {[%emt 0:00:08]} c6 {[%emt 0:00:26]} 4. a4 {[%emt 0:00:54]} Qa5 {[%emt 0:01:25]} 5. Bd2 {[%emt 0:02:26]} e5 {[%emt 0:00:05]} 6. Nf3 {[%emt 0:04:15]} Qc7 {[%emt 0:00:13]} 7. dxe5 {[%emt 0:01:11]} dxe5 {[%emt 0:00:06]} 8. Bc4 {[%emt 0:01:01]} Bb4 {[%emt 0:00:45]} 9. O-O {[%emt 0:01:15]} O-O {[%emt 0:00:31]} 10. Qe2 {[%emt 0:01:10]} Bg4 {[%emt 0:10:07]} 11. h3 {[%emt 0:03:58]} Bxf3 {[%emt 0:07:23]} 12. Qxf3 {[%emt 0:00:07]} Nbd7 {[%emt 0:00:48]} 13. Nb1 {[%emt 0:11:28]} a5 {[%emt 0:02:32]} 14. c3 {[%emt 0:00:50]} Be7 {[%emt 0:01:06]} 15. Bg5 {[%emt 0:01:33]} Nc5 {[%emt 0:01:42]} 16. Bxf6 {[%emt 0:01:41]} Bxf6 {[%emt 0:00:05]} 17. Nd2 {[%emt 0:02:43]} Rad8 {[%emt 0:12:58]} 18. Qe3 {[%emt 0:06:43]} Rd6 {[%emt 0:06:58]} 19. Nb3 {[%emt 0:02:08]} Nxb3 {[%emt 0:00:18]} 20. Bxb3 {[%emt 0:00:01]} Rfd8 {[%emt 0:00:14]} 21. Rfd1 {[%emt 0:00:28]} g6 {[%emt 0:01:06]} 22. Rxd6 {[%emt 0:00:23]} Rxd6 {[%emt 0:00:06]} 23. Rd1 {[%emt 0:00:07]} Rxd1+ {[%emt 0:00:40]} 24. Bxd1 {[%emt 0:00:02]} Qd8 {[%emt 0:00:54]} 25. Bb3 {[%emt 0:01:12]} Bg5 {[%emt 0:01:29]} 26. Qf3 {[%emt 0:00:18]} Qc7 {[%emt 0:03:53]} 27. g3 {[%emt 0:03:38]} Kg7 {[%emt 0:04:10]} 28. Kg2 {[%emt 0:02:18]} Bc1 {[%emt 0:04:53]} 29. Qe2 {[%emt 0:01:02]} Qd7 {[%emt 0:00:08]} 30. Qc2 {[%emt 0:00:42]} Qd2 {[%emt 0:00:59]} 31. Qxd2 {[%emt 0:00:06]} Bxd2 {[%emt 0:00:06]} 32. Bd1 {[%emt 0:00:34]} Bc1 {[%emt 0:00:38]} 33. b3 {[%emt 0:00:05]} Bb2 {[%emt 0:00:47]} 34. c4 {[%emt 0:00:11]} Kf6 {[%emt 0:01:26]} 35. Kf3 {[%emt 0:00:14]} Ke6 {[%emt 0:00:51]} 36. Ke2 {[%emt 0:00:14]} Bd4 {[%emt 0:00:57]} 37. f4 {[%emt 0:01:31]} h5 {[%emt 0:00:30]} 38. Bc2 {[%emt 0:01:17]} Kd6 {[%emt 0:03:11]} 39. f5 {[%emt 0:00:12]} Kc5 {[%emt 0:04:01]} 40. fxg6 {[%emt 0:00:10]} fxg6 {[%emt 0:00:05]} 41. Kd3 {[%emt 0:30:18]} Kb4 {[%emt 0:30:17]} 42. Bd1 {[%emt 0:00:22]} Bf2 {[%emt 0:00:33]} 43. g4 {[%emt 0:00:08]} hxg4 {[%emt 0:00:53]} 44. hxg4 {[%emt 0:00:02]} Be1 {[%emt 0:00:30]} 45. Kc2 {[%emt 0:00:15]} Kc5 {[%emt 0:01:16]} 46. Kd3 {[%emt 0:00:06]} Bg3 {[%emt 0:00:26]} 47. Bf3 {[%emt 0:00:23]} Bh2 {[%emt 0:01:16]} 48. Bg2 {[%emt 0:00:19]} Kd6 {[%emt 0:00:09]} 49. Bh3 {[%emt 0:00:55]} Bg3 {[%emt 0:01:21]} 50. Ke2 {[%emt 0:00:29]} b6 {[%emt 0:04:16]} 51. Kd3 {[%emt 0:00:21]} Bf2 {[%emt 0:00:06]} 52. Bg2 {[%emt 0:00:21]} Ke7 {[%emt 0:00:15]} 53. Ke2 {[%emt 0:00:08]} Bg1 {[%emt 0:00:06]} 54. Bf1 {[%emt 0:00:09]} Kd6 {[%emt 0:00:20]} 55. Kd3 {[%emt 0:00:07]} Kc5 {[%emt 0:00:07]} 56. Bg2 {[%emt 0:00:09]} Kb4 {[%emt 0:00:09]} 57. Kc2 {[%emt 0:00:05]} 1/2-1/2

[Event "Reykjavik Open 2025"]
[Site "Reykjavik"]
[Date "2025.04.10"]
[Round "3.44"]
[White "Martin, Nils"]
[Black "Gunnarsson, Jon Viktor"]
[Result "0-1"]
[Annotator "RC"]
[ECO "B75"]
[WhiteElo "2181"]
[BlackElo "2439"]
[PlyCount "54"]
[EventDate "2025.04.09"]
[EventType "swiss"]
[EventCountry "ISL"]
[SourceTitle "playchess.com"]
[Source "ChessBase"]
[SourceQuality "1"]
[TimeControl "40/5400+30:1800+30"]

1. e4 {[%emt 0:00:08]} c5 {[%emt 0:01:41]} 2. Nf3 {[%emt 0:00:06]} d6 {[%emt 0:00:10]} 3. d4 {[%emt 0:00:06]} cxd4 {[%emt 0:00:07]} 4. Nxd4 {[%emt 0:00:03]} Nf6 {[%emt 0:00:09]} 5. Nc3 {[%emt 0:00:03]} g6 {[%emt 0:00:31]} 6. Be3 {[%emt 0:00:06]} Bg7 {[%emt 0:00:24]} 7. f3 {[%emt 0:00:05]} a6 {[%emt 0:00:31]} 8. g4 {[%emt 0:03:26]} b5 {[%emt 0:06:04]} 9. g5 {[%emt 0:01:03]} Nfd7 {[%emt 0:08:04]} 10. a4 {[%emt 0:02:34]} bxa4 {[%emt 0:03:02]} 11. h4 {[%emt 0:02:32]} Nc5 {[%emt 0:13:10]} 12. h5 {[%emt 0:00:30]} e6 {[%emt 0:00:30]} 13. Qd2 {[%emt 0:00:30]} Bd7 {[%emt 0:00:30]} 14. Qh2 {[%emt 0:00:30]} Qb6 {[%emt 0:00:30]} 15. O-O-O {[%emt 0:00:30]} a3 {[%emt 0:00:30]} 16. bxa3 {[%emt 0:00:30]} Nc6 {[%emt 0:00:30]} 17. hxg6 {[%emt 0:00:30]} fxg6 {[%emt 0:00:30]} 18. Nde2 {[%emt 0:39:07]} Ne5 {[%emt 0:29:29]} 19. Bd4 {[%emt 0:03:43]} Rb8 {[%emt 0:01:54]} 20. Bxe5 {[%emt 0:01:19]} Bxe5 {[%emt 0:00:23]} 21. f4 {[%emt 0:01:32]} Qb2+ {[%emt 0:03:28]} 22. Kd2 {[%emt 0:00:14]} Bxc3+ {[%emt 0:01:36]} 23. Nxc3 {[%emt 0:00:11]} Nb3+ {[%emt 0:00:03]} 24. Kd3 {[%emt 0:00:19]} Rc8 {[%emt 0:00:22]} 25. Nb1 {[%emt 0:02:34]} Qd4+ {[%emt 0:01:09]} 26. Ke2 {[%emt 0:00:02]} Rxc2+ {[%emt 0:00:16]} 27. Ke1 {[%emt 0:00:14]} Qe3+ {[%emt 0:01:50]} 0-1

[Event "Reykjavik Open 2025"]
[Site "Reykjavik"]
[Date "2025.04.11"]
[Round "4.1"]
[White "Ivic, Velimir"]
[Black "Jacobson, Brandon"]
[Result "1/2-1/2"]
[Annotator "ChessBase"]
[ECO "C50"]
[WhiteElo "2623"]
[BlackElo "2570"]
[PlyCount "54"]
[EventDate "2025.04.09"]
[EventType "swiss"]
[EventCountry "ISL"]
[SourceTitle "playchess.com"]
[Source "ChessBase"]
[SourceQuality "1"]
[TimeControl "40/5400+30:1800+30"]

1. e4 {[%emt 0:00:08]} e5 {[%emt 0:02:33]} 2. Nf3 {[%emt 0:00:13]} Nc6 {[%emt 0:00:06]} 3. Bc4 {[%emt 0:00:14]} Bc5 {[%emt 0:00:41]} 4. d3 {[%emt 0:00:29]} Nf6 {[%emt 0:00:36]} 5. Nc3 {[%emt 0:00:44]} h6 {[%emt 0:07:42]} 6. O-O {[%emt 0:01:53]} d6 {[%emt 0:06:38]} 7. Na4 {[%emt 0:01:46]} Bb6 {[%emt 0:00:35]} 8. a3 {[%emt 0:00:28]} Bg4 {[%emt 0:03:56]} 9. c3 {[%emt 0:00:46]} Qc8 {[%emt 0:04:46]} 10. Nxb6 {[%emt 0:05:31]} axb6 {[%emt 0:00:23]} 11. Qe2 {[%emt 0:01:53]} O-O {[%emt 0:02:30]} 12. Bb3 {[%emt 0:03:52]} Rd8 {[%emt 0:04:38]} 13. h3 {[%emt 0:05:45]} Be6 {[%emt 0:13:50]} 14. Bc2 {[%emt 0:01:20]} d5 {[%emt 0:04:10]} 15. exd5 {[%emt 0:06:45]} Rxd5 {[%emt 0:01:00]} 16. Be3 {[%emt 0:04:46]} Bf5 {[%emt 0:03:50]} 17. Nd2 {[%emt 0:04:48]} Rd8 {[%emt 0:04:29]} 18. Rad1 {[%emt 0:09:24]} Nd5 {[%emt 0:01:16]} 19. Rfe1 {[%emt 0:11:03]} Qd7 {[%emt 0:03:11]} 20. Nf1 {[%emt 0:03:53]} Re8 {[%emt 0:00:54]} 21. Bc1 {[%emt 0:02:19]} Rad8 {[%emt 0:02:37]} 22. Ng3 {[%emt 0:02:24]} Bg6 {[%emt 0:00:40]} 23. Qg4 {[%emt 0:03:10]} Qe6 {[%emt 0:05:35]} 24. Qh4 {[%emt 0:03:21]} Qe7 {[%emt 0:02:22]} 25. Qg4 {[%emt 0:02:46]} Qe6 {[%emt 0:00:10]} 26. Qh4 {[%emt 0:00:35]} Qe7 {[%emt 0:03:26]} 27. Qg4 {[%emt 0:01:21]} Qe6 {[%emt 0:00:10]} 1/2-1/2

[Event "Reykjavik Open 2025"]
[Site "Reykjavik"]
[Date "2025.04.11"]
[Round "4.2"]
[White "Gorshtein, Ido"]
[Black "Ivanchuk, Vasyl"]
[Result "1/2-1/2"]
[Annotator "ChessBase"]
[ECO "A30"]
[WhiteElo "2557"]
[BlackElo "2604"]
[PlyCount "76"]
[EventDate "2025.04.09"]
[EventType "swiss"]
[EventCountry "ISL"]
[SourceTitle "playchess.com"]
[Source "ChessBase"]
[SourceQuality "1"]
[TimeControl "40/5400+30:1800+30"]

1. c4 {[%emt 0:00:04]} Nf6 {[%emt 0:00:59]} 2. Nf3 {[%emt 0:00:06]} c5 {[%emt 0:00:11]} 3. Nc3 {[%emt 0:00:21]} e6 {[%emt 0:00:31]} 4. g3 {[%emt 0:00:44]} b6 {[%emt 0:00:17]} 5. Bg2 {[%emt 0:00:05]} Bb7 {[%emt 0:00:04]} 6. O-O {[%emt 0:00:11]} Be7 {[%emt 0:00:03]} 7. Re1 {[%emt 0:00:41]} d5 {[%emt 0:01:09]} 8. cxd5 {[%emt 0:01:04]} Nxd5 {[%emt 0:00:07]} 9. Nxd5 {[%emt 0:00:42]} Qxd5 {[%emt 0:03:12]} 10. d4 {[%emt 0:22:12]} cxd4 {[%emt 0:01:34]} 11. Qxd4 {[%emt 0:00:27]} O-O {[%emt 0:00:07]} 12. Qxd5 {[%emt 0:17:40]} Bxd5 {[%emt 0:01:23]} 13. Nd4 {[%emt 0:00:05]} Bxg2 {[%emt 0:36:48]} 14. Kxg2 {[%emt 0:00:09]} Na6 {[%emt 0:00:38]} 15. Be3 {[%emt 0:02:45]} Rfc8 {[%emt 0:04:48]} 16. Rec1 {[%emt 0:00:53]} Nb4 {[%emt 0:04:19]} 17. Bd2 {[%emt 0:07:33]} Kf8 {[%emt 0:18:18]} 18. Bxb4 {[%emt 0:04:47]} Bxb4 {[%emt 0:00:07]} 19. e3 {[%emt 0:00:27]} a6 {[%emt 0:07:12]} 20. Kf1 {[%emt 0:02:07]} Be7 {[%emt 0:00:51]} 21. Ke2 {[%emt 0:02:30]} Bf6 {[%emt 0:01:50]} 22. Rxc8+ {[%emt 0:00:45]} Rxc8 {[%emt 0:00:07]} 23. Rd1 {[%emt 0:00:03]} Rd8 {[%emt 0:02:03]} 24. b3 {[%emt 0:03:51]} Bxd4 {[%emt 0:00:23]} 25. Rxd4 {[%emt 0:00:43]} Rxd4 {[%emt 0:00:40]} 26. exd4 {[%emt 0:00:05]} Ke7 {[%emt 0:00:11]} 27. Kd3 {[%emt 0:00:39]} Kd6 {[%emt 0:00:09]} 28. Ke4 {[%emt 0:00:35]} g5 {[%emt 0:05:09]} 29. h3 {[%emt 0:10:24]} a5 {[%emt 0:02:30]} 30. f4 {[%emt 0:02:33]} gxf4 {[%emt 0:02:25]} 31. gxf4 {[%emt 0:00:40]} b5 {[%emt 0:02:23]} 32. h4 {[%emt 0:04:01]} b4 {[%emt 0:04:24]} 33. h5 {[%emt 0:02:50]} f5+ {[%emt 0:00:49]} 34. Ke3 {[%emt 0:00:51]} h6 {[%emt 0:01:09]} 35. Kd2 {[%emt 0:00:17]} Kc7 {[%emt 0:00:20]} 36. Kd3 {[%emt 0:00:24]} Kd6 {[%emt 0:00:28]} 37. Kd2 {[%emt 0:00:05]} Kc6 {[%emt 0:00:15]} 38. Ke3 {[%emt 0:00:17]} Kd6 {[%emt 0:01:00]} 1/2-1/2

[Event "Reykjavik Open 2025"]
[Site "Reykjavik"]
[Date "2025.04.11"]
[Round "4.3"]
[White "Kilic, Eray"]
[Black "Muradli, Mahammad"]
[Result "0-1"]
[Annotator "ChessBase"]
[ECO "B99"]
[WhiteElo "2473"]
[BlackElo "2588"]
[PlyCount "60"]
[EventDate "2025.04.09"]
[EventType "swiss"]
[EventCountry "ISL"]
[SourceTitle "playchess.com"]
[Source "ChessBase"]
[SourceQuality "1"]
[TimeControl "40/5400+30:1800+30"]

1. e4 {[%emt 0:00:03]} c5 {[%emt 0:05:10]} 2. Nf3 {[%emt 0:00:03]} d6 {[%emt 0:00:12]} 3. d4 {[%emt 0:00:10]} cxd4 {[%emt 0:03:21]} 4. Nxd4 {[%emt 0:02:29]} Nf6 {[%emt 0:00:09]} 5. Nc3 {[%emt 0:00:05]} a6 {[%emt 0:00:10]} 6. Bg5 {[%emt 0:00:04]} e6 {[%emt 0:00:10]} 7. f4 {[%emt 0:00:05]} Be7 {[%emt 0:00:44]} 8. Qf3 {[%emt 0:00:07]} Qc7 {[%emt 0:00:11]} 9. O-O-O {[%emt 0:00:06]} Nbd7 {[%emt 0:00:21]} 10. f5 {[%emt 0:00:04]} Ne5 {[%emt 0:00:10]} 11. Qh3 {[%emt 0:00:06]} O-O {[%emt 0:00:49]} 12. Be2 {[%emt 0:12:15]} h6 {[%emt 0:02:30]} 13. Bf4 {[%emt 0:04:32]} exf5 {[%emt 0:16:11]} 14. Nxf5 {[%emt 0:03:20]} Bxf5 {[%emt 0:01:16]} 15. exf5 {[%emt 0:00:39]} Rac8 {[%emt 0:00:46]} 16. Qe3 {[%emt 0:17:18]} b5 {[%emt 0:03:00]} 17. a3 {[%emt 0:02:35]} Rfe8 {[%emt 0:03:53]} 18. Kb1 {[%emt 0:00:24]} Bf8 {[%emt 0:04:38]} 19. Qc1 {[%emt 0:16:58]} Qb7 {[%emt 0:04:33]} 20. Rd4 {[%emt 0:01:42]} d5 {[%emt 0:05:01]} 21. Rhd1 {[%emt 0:03:05]} Nc6 {[%emt 0:01:46]} 22. Bf3 {[%emt 0:04:11]} Nxd4 {[%emt 0:00:28]} 23. Rxd4 {[%emt 0:00:05]} Qb6 {[%emt 0:03:28]} 24. Qd1 {[%emt 0:00:06]} b4 {[%emt 0:02:12]} 25. Nxd5 {[%emt 0:01:05]} Nxd5 {[%emt 0:00:07]} 26. Bxd5 {[%emt 0:00:04]} bxa3 {[%emt 0:00:16]} 27. Bb3 {[%emt 0:00:05]} axb2 {[%emt 0:01:37]} 28. Rd7 {[%emt 0:01:01]} Qa5 {[%emt 0:00:27]} 29. Kxb2 {[%emt 0:00:48]} Re1 {[%emt 0:00:08]} 30. Qd5 {[%emt 0:01:13]} Qa3# {[%emt 0:00:07]} 0-1

[Event "Reykjavik Open 2025"]
[Site "Reykjavik"]
[Date "2025.04.11"]
[Round "4.4"]
[White "Gupta, Abhijeet"]
[Black "Garifullina, Leya"]
[Result "1-0"]
[Annotator "TA"]
[ECO "A50"]
[WhiteElo "2576"]
[BlackElo "2459"]
[PlyCount "115"]
[EventDate "2025.04.09"]
[EventType "swiss"]
[EventCountry "ISL"]
[SourceTitle "playchess.com"]
[Source "ChessBase"]
[SourceQuality "1"]
[TimeControl "40/5400+30:1800+30"]

{[%evp 9,115,10,13,11,15,14,11,8,11,4,14,9,18,6,47,30,28,25,42,29,40,36,38,25,45,20,56,52,56,57,63,67,67,16,12,18,23,27,52,38,45,45,73,27,40,33,41,37,58,61,222,83,93,96,135,58,83,78,105,69,139,97,212,220,297,272,328,262,259,256,260,275,262,271,260,260,255,264,390,425,497,407,729,728,1003,696,872,0,1033,1007,1372,1369,1472,1475,1485,1000,1404,1435,5422,5406,1926,1964,29992,29993,29993,29994,29998,29999]} 1. d4 {[%emt 0:00:33]} Nf6 {[%emt 0:00:07]} 2. c4 {[%emt 0:00:08]} e6 {[%emt 0:00:05]} 3. Bf4 {[%emt 0:00:12]} d5 {[%emt 0:01:02]} 4. cxd5 {[%emt 0:00:20]} exd5 {[%emt 0:01:52]} 5. e3 {[%emt 0:01:45]} Bd6 {[%emt 0:03:18]} 6. Bxd6 {[%emt 0:00:09] A50: Queen's Fianchetto Defence (1 d4 Nf6 2 c4 b6).} Qxd6 {[%emt 0:00:06]} 7. Bd3 {[%emt 0:00:35]} Bg4 {[%emt 0:06:12]} 8. Ne2 {[%emt 0:05:06] The position is equal.} Bxe2 {[%emt 0:06:33]} 9. Qxe2 {[%emt 0:00:24]} O-O {[%emt 0:00:20]} 10. Nc3 {[%emt 0:00:15]} Nbd7 {[%emt 0:02:07]} 11. O-O {[%emt 0:00:47]} c5 $146 {[%emt 0:03:33]} (11... c6 12. Rab1 a5 13. h3 Rfe8 14. Qc2 g6 15. Rfe1 Re7 16. a3 Kg7 17. Rbc1 Rae8 {0-1 Yoo,C (2548)-Shimanov,A (2581) Titled Tuesday intern op 14th Jun Late blitz 2022 (7)}) 12. dxc5 {[%emt 0:01:14]} Nxc5 {[%emt 0:00:10]} 13. Rad1 {[%emt 0:00:07][%cal Od3c4]} Qe5 {[%emt 0:06:59]} 14. Bb1 {[%emt 0:08:33]} Rac8 {[%emt 0:06:03]} 15. h3 {[%emt 0:01:16]} Rfd8 {[%emt 0:04:25][%cal Bf8d8,Bd8d6,Bd6b6][%mdl 32]} 16. Qb5 {[%emt 0:11:29]} Rd6 {[%emt 0:11:14]} 17. Rd4 {[%emt 0:01:56]} Rb6 {[%emt 0:03:55]} 18. Qe2 {[%emt 0:00:15]} g6 {[%emt 0:10:37]} 19. Rfd1 {[%emt 0:02:30]} Ne6 {[%emt 0:03:25]} 20. R4d2 {[%emt 0:00:48][%cal Of2f4]} Nc7 {[%emt 0:00:34]} 21. a4 {[%emt 0:11:15]} (21. a3 $14) 21... Kg7 {[%emt 0:01:59]} 22. Ba2 {[%emt 0:00:27]} Re8 {[%emt 0:02:10]} 23. Rd3 {[%emt 0:13:26]} Ne6 {[%emt 0:05:49][%cal Oe6f4]} 24. a5 {[%emt 0:05:10]} (24. Bxd5 Nf4 25. exf4 Qxe2 26. Nxe2 Rxe2 $11) 24... Rb4 {[%emt 0:00:41][%cal Oe6f4]} 25. Qd2 {[%emt 0:02:21][%cal Of2f4]} (25. Nxd5 Nxd5 26. Bxd5 (26. Rxd5 $2 Nf4 $19) 26... Nf4 $17) 25... d4 {[%emt 0:01:46]} 26. Bxe6 {[%emt 0:12:37]} (26. Nd5 $16 Nxd5 27. Bxd5 (27. exd4 $2 Qd6 $19)) 26... Rxe6 $11 {[%emt 0:04:50]} 27. Ne2 {[%emt 0:09:54]} Qxa5 {[%emt 0:00:29]} 28. Nxd4 {[%emt 0:00:11]} (28. Rxd4 Reb6 $11) 28... Re7 {[%emt 0:02:55]} 29. b3 {[%emt 0:02:37]} Qb6 $2 {[%emt 0:00:52]} (29... Ne4 $14 30. Qb2 f6) 30. Qb2 {[%emt 0:00:32]} (30. Qc3 $18 {is the precise move to win.}) 30... Qc5 $16 {[%emt 0:03:47]} 31. Rc3 {[%emt 0:00:40]} Qb6 {[%emt 0:03:03]} 32. Rdc1 {[%emt 0:01:34]} ({White should try} 32. Rc8 $16) 32... Qd6 {[%emt 0:01:08]} 33. Rd3 {[%emt 0:02:37][%cal Od4f5]} Qa6 {[%emt 0:00:59]} 34. Rd2 {[%emt 0:02:28]} Qb6 {[%emt 0:01:08]} (34... Re8 $14) 35. Qa1 {[%emt 0:00:48]} a6 {[%emt 0:01:25] [#]} (35... Re8 $16) 36. Rc8 $1 $18 {[%emt 0:00:30]} Rc7 {[%emt 0:01:10]} 37. Rd8 {[%emt 0:01:04][%cal Od4f5]} Re7 {[%emt 0:01:19] [#]} 38. Rd6 $3 {[%emt 0:01:22][%mdl 512]} Qxd6 {[%emt 0:00:34] [#]} 39. Nf5+ $1 {[%emt 0:00:04][%mdl 512]} gxf5 {[%emt 0:00:05]} 40. Rxd6 {[%emt 0:00:02]} Re6 {[%emt 0:00:03]} 41. Rd5 {[%emt 0:31:25]} Kg6 {[%emt 0:30:32]} 42. Rd3 {[%emt 0:00:00]} Rb5 {[%emt 0:00:00]} 43. Qd1 {[%emt 0:00:00]} Reb6 {[%emt 0:00:00]} (43... Kg7 {was necessary.} 44. Kh2 h6) 44. Qf3 {[%emt 0:00:00]} Ne4 {[%emt 0:00:00] Against Qg3+} 45. Rd8 {[%emt 0:00:00]} h6 {[%emt 0:00:00]} (45... Kg7 $142 46. Qf4 Rg6) 46. Qf4 {[%emt 0:00:00]} Rc6 {[%emt 0:00:00]} 47. Qb8 {[%emt 0:00:00]} Kh5 {[%emt 0:00:00]} 48. Qf4 {[%emt 0:00:00] Hoping for Rg8.} Kg6 $1 {[%emt 0:00:00]} 49. Rg8+ {[%emt 0:00:00]} Kh7 {[%emt 0:00:00]} 50. Qb8 {[%emt 0:00:00] Threatening mate with Qf8.} Rg6 {[%emt 0:00:00]} 51. Rh8+ {[%emt 0:00:00]} Kg7 {[%emt 0:00:00]} 52. Qf8+ {[%emt 0:00:00]} Kf6 {[%emt 0:00:00]} 53. Rh7 {[%emt 0:00:00]} Ng5 {[%emt 0:00:00]} 54. Qd8+ {[%emt 0:00:00]} Ke6 {[%emt 0:00:00]} 55. Rh8 {[%emt 0:00:00][%cal Rh8e8]} f4 {[%emt 0:00:00]} 56. Re8+ {[%emt 0:00:00] White mates.} Kf5 {[%emt 0:00:00]} 57. Qd3+ {[%emt 0:00:00]} Kf6 {[%emt 0:00:00]} 58. Qd4+ {[%emt 0:00:00] Weighted Error Value: White=0.41/Black=0.85  Loses game:     	---       	Black=1      Mistake:       	White=4     	Black=4      Inaccurate:     	White=2     	Black=8      OK:         	White=22    	Black=9      Best:        	---       	Black=2      Brilliant:      	White=1     	---} 1-0

[Event "Reykjavik Open 2025"]
[Site "Reykjavik"]
[Date "2025.04.11"]
[Round "4.5"]
[White "Gunnarsson, Jon Viktor"]
[Black "Safarli, Eltaj"]
[Result "0-1"]
[Annotator "ChessBase"]
[ECO "B33"]
[WhiteElo "2439"]
[BlackElo "2617"]
[PlyCount "64"]
[EventDate "2025.04.09"]
[EventType "swiss"]
[EventCountry "ISL"]
[SourceTitle "playchess.com"]
[Source "ChessBase"]
[SourceQuality "1"]
[TimeControl "40/5400+30:1800+30"]

1. e4 {[%emt 0:00:04]} c5 {[%emt 0:00:07]} 2. Nf3 {[%emt 0:00:09]} Nc6 {[%emt 0:00:09]} 3. d4 {[%emt 0:00:11]} cxd4 {[%emt 0:00:06]} 4. Nxd4 {[%emt 0:00:10]} Nf6 {[%emt 0:00:15]} 5. Nc3 {[%emt 0:00:10]} e5 {[%emt 0:00:38]} 6. Ndb5 {[%emt 0:00:07]} d6 {[%emt 0:00:07]} 7. Nd5 {[%emt 0:00:12]} Nxd5 {[%emt 0:00:06]} 8. exd5 {[%emt 0:00:08]} Ne7 {[%emt 0:00:16]} 9. c4 {[%emt 0:00:33]} Ng6 {[%emt 0:00:29]} 10. h4 {[%emt 0:06:14]} Nxh4 {[%emt 0:13:41]} 11. Rxh4 {[%emt 0:03:34]} a6 {[%emt 0:06:31]} 12. Bg5 {[%emt 0:14:59]} Be7 {[%emt 0:01:37]} 13. Bxe7 {[%emt 0:13:10]} Qxe7 {[%emt 0:02:41]} 14. Nxd6+ {[%emt 0:05:40]} Qxd6 {[%emt 0:00:05]} 15. Qa4+ {[%emt 0:00:15]} Ke7 {[%emt 0:12:21]} 16. c5 {[%emt 0:11:18]} Qxd5 {[%emt 0:19:38]} 17. Rd1 {[%emt 0:01:39]} Qc6 {[%emt 0:00:06]} 18. Qb4 {[%emt 0:05:06]} Be6 {[%emt 0:07:41]} 19. Rd6 {[%emt 0:02:02]} Qc7 {[%emt 0:00:06]} 20. Rb6 {[%emt 0:07:44]} a5 {[%emt 0:00:28]} 21. Rxb7 {[%emt 0:03:58]} axb4 {[%emt 0:00:05]} 22. Rxc7+ {[%emt 0:00:04]} Kf6 {[%emt 0:00:26]} 23. Rxb4 {[%emt 0:02:17]} Rxa2 {[%emt 0:00:56]} 24. Bd3 {[%emt 0:03:46]} Ra1+ {[%emt 0:06:38]} 25. Ke2 {[%emt 0:03:02]} Rd8 {[%emt 0:00:05]} 26. Rb6 {[%emt 0:09:21]} Rd4 {[%emt 0:04:43]} 27. Bxh7 {[%emt 0:03:00]} Rad1 {[%emt 0:03:59]} 28. f3 {[%emt 0:03:07]} R1d2+ {[%emt 0:03:10]} 29. Ke3 {[%emt 0:00:59]} g6 {[%emt 0:00:44]} 30. Bg8 {[%emt 0:00:53]} R4d3+ {[%emt 0:01:03]} 31. Ke4 {[%emt 0:00:04]} Kg5 {[%emt 0:00:21]} 32. Rb4 {[%emt 0:01:46]} Bf5+ {[%emt 0:00:13]} 0-1

[Event "Reykjavik Open 2025"]
[Site "Reykjavik"]
[Date "2025.04.11"]
[Round "4.6"]
[White "Banusz, Tamas"]
[Black "Thorhallsson, Throstur"]
[Result "1-0"]
[Annotator "ChessBase"]
[ECO "D02"]
[WhiteElo "2592"]
[BlackElo "2394"]
[PlyCount "75"]
[EventDate "2025.04.09"]
[EventType "swiss"]
[EventCountry "ISL"]
[SourceTitle "playchess.com"]
[Source "ChessBase"]
[SourceQuality "1"]
[TimeControl "40/5400+30:1800+30"]

1. d4 {[%emt 0:00:04]} d5 {[%emt 0:01:07]} 2. Nf3 {[%emt 0:00:07]} Nf6 {[%emt 0:00:17]} 3. Bf4 {[%emt 0:00:15]} g6 {[%emt 0:02:37]} 4. c3 {[%emt 0:01:32]} Bg7 {[%emt 0:00:36]} 5. e3 {[%emt 0:00:58]} O-O {[%emt 0:03:13]} 6. Nbd2 {[%emt 0:01:13]} c6 {[%emt 0:08:26]} 7. Bd3 {[%emt 0:05:26]} Qb6 {[%emt 0:03:42]} 8. Rb1 {[%emt 0:00:48]} c5 {[%emt 0:05:16]} 9. h3 {[%emt 0:02:19]} a5 {[%emt 0:05:00]} 10. O-O {[%emt 0:04:32]} Nc6 {[%emt 0:00:26]} 11. a4 {[%emt 0:07:47]} Nd7 {[%emt 0:11:09]} 12. Re1 {[%emt 0:05:35]} e5 {[%emt 0:02:22]} 13. dxe5 {[%emt 0:02:20]} Ndxe5 {[%emt 0:00:26]} 14. Bxe5 {[%emt 0:01:46]} Nxe5 {[%emt 0:03:11]} 15. Nxe5 {[%emt 0:01:07]} Bxe5 {[%emt 0:00:05]} 16. e4 {[%emt 0:02:39]} Bc7 {[%emt 0:06:00]} 17. exd5 {[%emt 0:03:11]} Qd6 {[%emt 0:00:38]} 18. Nf3 {[%emt 0:05:08]} Qxd5 {[%emt 0:00:55]} 19. Be4 {[%emt 0:03:20]} Qxd1 {[%emt 0:07:34]} 20. Rbxd1 {[%emt 0:00:29]} Rb8 {[%emt 0:22:16]} 21. Bd5 {[%emt 0:05:34]} Bd8 {[%emt 0:00:27]} 22. Bc4 {[%emt 0:14:36]} Bf6 {[%emt 0:01:19]} 23. Ne5 {[%emt 0:02:27]} Kg7 {[%emt 0:03:11]} 24. Nd7 {[%emt 0:07:34]} Bxd7 {[%emt 0:00:06]} 25. Rxd7 {[%emt 0:00:02]} b6 {[%emt 0:01:24]} 26. g3 {[%emt 0:02:17]} Rbd8 {[%emt 0:00:57]} 27. Red1 {[%emt 0:00:30]} Be7 {[%emt 0:01:31]} 28. R1d3 {[%emt 0:01:06]} Bg5 {[%emt 0:01:37]} 29. f4 {[%emt 0:05:05]} Bf6 {[%emt 0:00:32]} 30. Kg2 {[%emt 0:01:00]} h6 {[%emt 0:02:23]} 31. Kf3 {[%emt 0:02:38]} g5 {[%emt 0:00:12]} 32. f5 {[%emt 0:00:48]} h5 {[%emt 0:00:48]} 33. g4 {[%emt 0:01:44]} hxg4+ {[%emt 0:00:18]} 34. hxg4 {[%emt 0:00:04]} Rde8 {[%emt 0:03:31]} 35. Rb7 {[%emt 0:00:29]} Re7 {[%emt 0:00:57]} 36. Rdd7 {[%emt 0:00:14]} Rfe8 {[%emt 0:02:18]} 37. Rxe7 {[%emt 0:00:21]} Bxe7 {[%emt 0:01:00]} 38. Bb5 {[%emt 0:00:38]} 1-0